bitfinex-derivatives/quotes_BTCF0:USTF0_20251002
["timestamp","ask_amount","ask_price","bid_price","bid_amount"]
[1759442811975,0.69531548,120360.0,120350.0,0.1189528]
[1759442812171,1.44639548,120360.0,120350.0,0.37043858]
[1759442812376,0.69531548,120360.0,120350.0,0.1189528]
[1759442812569,1.44643548,120360.0,120350.0,0.1189528]
[1759442814373,0.69531548,120360.0,120350.0,0.1189528]
[1759442814575,1.44643548,120360.0,120350.0,0.1189528]
[1759442815782,0.3608,120360.0,120350.0,0.77043858]
[1759442816078,1.11188,120360.0,120350.0,0.77043858]
[1759442816280,1.44639168,120360.0,120350.0,0.77043858]
[1759442816981,1.46865668,120360.0,120350.0,0.77043858]
[1759442821581,1.2171709,120360.0,120350.0,0.77043858]
[1759442821773,1.46865668,120360.0,120350.0,0.77043858]
[1759442824175,1.46865668,120360.0,120350.0,0.5189528]
[1759442824376,1.46865668,120360.0,120350.0,0.77043858]
[1759442824570,1.2171709,120360.0,120350.0,0.77043858]
[1759442824785,1.46865668,120360.0,120350.0,0.77043858]
[1759442826389,0.4660909,120360.0,120350.0,0.37043858]
[1759442826577,1.2170509,120360.0,120350.0,0.37043858]
[1759442827581,1.2170509,120360.0,120350.0,0.1189528]
[1759442827885,1.46853668,120360.0,120350.0,0.37043858]
[1759442830780,1.72002246,120360.0,120350.0,0.0964528]
[1759442833291,1.2170509,120360.0,120350.0,0.0964528]
[1759442833489,1.72002246,120360.0,120350.0,0.0964528]
[1759442836888,1.69775746,120360.0,120350.0,0.0964528]
[1759442837696,1.1947859,120360.0,120350.0,0.0964528]
[1759442837994,1.69775746,120360.0,120350.0,0.0964528]
[1759442838789,1.69775746,120360.0,120350.0,0.1182728]
[1759442840202,1.44641529,120360.0,120350.0,0.1182728]
[1759442840999,1.44641529,120360.0,120350.0,0.0964528]
[1759442843699,1.44641529,120360.0,120350.0,0.1182728]
[1759442848402,1.44641529,120360.0,120350.0,0.0964528]
[1759442849207,1.44641529,120360.0,120350.0,0.1193528]
[1759442852207,0.0830328,120350.0,120340.0,0.11942673]
[1759442852407,0.69546219,120350.0,120340.0,0.11942673]
[1759442854311,1.44630219,120350.0,120340.0,0.11942673]
[1759442855811,1.4363327,120350.0,120340.0,0.11942673]
[1759442858312,0.6854927,120350.0,120340.0,0.11942673]
[1759442858706,0.3608,120350.0,120340.0,0.11942673]
[1759442858912,0.3608,120350.0,120340.0,0.37105612]
[1759442859121,0.4438307,120360.0,120350.0,0.1188228]
[1759442859308,0.3608,120360.0,120350.0,0.37045219]
[1759442859512,0.3608,120370.0,120360.0,0.1188159]
[1759442859809,1.11168,120370.0,120360.0,0.37044529]
[1759442860210,0.3608,120370.0,120360.0,0.77044529]
[1759442860410,0.38308753,120390.0,120380.0,0.0959021]
[1759442860610,1.13365802,120390.0,120380.0,0.37043149]
[1759442861118,1.13365802,120390.0,120380.0,0.1188021]
[1759442863914,1.38528741,120390.0,120380.0,0.1188021]
[1759442865216,1.13365802,120390.0,120380.0,0.1188021]
[1759442865415,1.38528741,120390.0,120380.0,0.1188021]
[1759442867118,1.36330939,120390.0,120380.0,0.1188021]
[1759442867618,1.00250939,120390.0,120380.0,0.1188021]
[1759442867820,1.00242939,120390.0,120380.0,0.1188021]
[1759442868917,0.7508,120390.0,120380.0,0.1188021]
[1759442870514,0.69543289,120400.0,120390.0,0.1187952]
[1759442870713,1.46807463,120400.0,120390.0,0.1187952]
[1759442873119,1.46803463,120400.0,120390.0,0.1187952]
[1759442873320,1.46802741,120400.0,120390.0,0.1187952]
[1759442874822,1.21639802,120400.0,120390.0,0.1187952]
[1759442875024,1.46802741,120400.0,120390.0,0.1187952]
[1759442879821,1.21639802,120400.0,120390.0,0.1187952]
[1759442880022,1.46802741,120400.0,120390.0,0.1187952]
[1759442880730,0.0830052,120390.0,120380.0,0.1177361]
[1759442880929,0.33463459,120390.0,120380.0,0.1177361]
[1759442881424,0.94706398,120390.0,120380.0,0.0959021]
[1759442881629,0.94706398,120390.0,120380.0,0.0830121]
[1759442882721,0.94706398,120390.0,120370.0,0.01289]
[1759442882927,1.08532149,120380.0,120370.0,0.1177442]
[1759442883125,0.8336921,120380.0,120370.0,0.1177442]
[1759442883330,1.44612149,120380.0,120370.0,0.1177442]
[1759442888431,1.1944921,120380.0,120370.0,0.1177442]
[1759442888723,0.69544149,120380.0,120370.0,0.1177442]
[1759442888932,0.3608,120380.0,120370.0,0.1177442]
[1759442889131,1.21639946,120380.0,120370.0,0.1177442]
[1759442891636,1.1944921,120380.0,120370.0,0.1177442]
[1759442892439,1.44612149,120380.0,120370.0,0.1177442]
[1759442893138,1.44612149,120380.0,120370.0,0.0959042]
[1759442893546,1.44612149,120380.0,120370.0,0.1177442]
[1759442895447,1.44612149,120380.0,120370.0,0.0959042]
[1759442896147,1.44612149,120380.0,120370.0,0.1177442]
[1759442898852,1.44612149,120380.0,120370.0,0.0959042]
[1759442899345,1.1944921,120380.0,120370.0,0.1177442]
[1759442899850,1.44612149,120380.0,120370.0,0.1177442]
[1759442901045,1.44612149,120380.0,120370.0,0.095909]
[1759442901249,1.44612149,120380.0,120370.0,0.083019]
[1759442901646,1.44612149,120380.0,120370.0,0.096839]
[1759442902047,1.44612149,120380.0,120370.0,0.118679]
[1759442902248,1.69759698,120380.0,120370.0,0.118679]
[1759442903954,1.71962343,120380.0,120370.0,0.118679]
[1759442905051,1.71962343,120380.0,120370.0,0.096839]
[1759442905755,0.0830237,120370.0,120360.0,0.0830233]
[1759442905954,0.94692858,120370.0,120360.0,0.0830233]
[1759442906551,0.69537614,120370.0,120360.0,0.0967133]
[1759442906943,0.94692858,120370.0,120350.0,0.0968487]
[1759442907143,1.94916322,120360.0,120340.0,0.19261852]
[1759442907349,0.3608,120350.0,120340.0,0.11798093]
[1759442907550,1.10151086,120350.0,120340.0,0.11798093]
[1759442907746,1.3530633,120350.0,120340.0,0.11798093]
[1759442908557,1.4360961,120350.0,120340.0,0.11798093]
[1759442911053,0.6854161,120350.0,120340.0,0.11798093]
[1759442911254,1.4361361,120350.0,120340.0,0.11798093]
[1759442913060,0.6854161,120350.0,120340.0,0.11798093]
[1759442913260,1.4361761,120350.0,120340.0,0.11798093]
[1759442913457,1.4361761,120350.0,120340.0,0.36953337]
[1759442913652,1.4361761,120350.0,120340.0,0.11798093]
[1759442916956,1.18462366,120350.0,120340.0,0.11798093]
[1759442917161,1.4361761,120350.0,120340.0,0.11798093]
[1759442917965,0.6854161,120350.0,120340.0,0.11798093]
[1759442918166,1.4362161,120350.0,120340.0,0.11798093]
[1759442922160,1.68776854,120350.0,120340.0,6.713e-05]
[1759442922866,2.08776854,120350.0,120340.0,6.713e-05]
[1759442928973,1.33696854,120350.0,120340.0,6.713e-05]
[1759442929169,2.08784854,120350.0,120340.0,6.713e-05]
[1759442929375,0.6854161,120350.0,120340.0,0.36940927]
[1759442929678,1.4362961,120350.0,120340.0,0.11785683]
[1759442936578,0.6854161,120350.0,120340.0,0.11785683]
[1759442936778,0.6854161,120350.0,120340.0,0.36940927]
[1759442936983,1.4363361,120350.0,120340.0,0.36940927]
[1759442944286,0.6854161,120350.0,120340.0,0.36940927]
[1759442944482,1.4363361,120350.0,120340.0,0.36940927]
[1759442944684,1.18478366,120350.0,120340.0,0.36940927]
[1759442944885,1.4363361,120350.0,120340.0,0.36940927]
[1759442946492,0.6854161,120350.0,120340.0,0.36940927]
[1759442946684,1.4363361,120350.0,120340.0,0.36940927]
[1759442948287,1.4363361,120350.0,120340.0,0.11785683]
[1759442948484,1.4363361,120350.0,120340.0,0.36940927]
[1759442948993,1.44630524,120350.0,120340.0,0.36940927]
[1759442951494,1.44630524,120350.0,120340.0,0.36940927]
[1759442956898,1.1947528,120350.0,120340.0,0.36940927]
[1759442957198,1.44630524,120350.0,120340.0,0.36940927]
[1759442959697,1.44630524,120350.0,120340.0,0.11785683]
[1759442959894,1.44630524,120350.0,120340.0,0.36940927]
[1759442961797,0.4438328,120350.0,120340.0,0.36940927]
[1759442961993,1.44622524,120350.0,120340.0,0.36940927]
[1759442962194,1.44622524,120350.0,120340.0,0.11785683]
[1759442962394,0.69538524,120350.0,120340.0,0.36940927]
[1759442962589,0.69538244,120360.0,120350.0,0.1186428]
[1759442962791,0.85585705,120360.0,120350.0,0.37019524]
[1759442963100,0.3608,120370.0,120360.0,0.1186359]
[1759442963299,1.11164,120370.0,120360.0,0.62174078]
[1759442963497,0.3608,120370.0,120360.0,0.62174078]
[1759442963697,1.11164,120370.0,120360.0,0.62174078]
[1759442963999,1.44621144,120370.0,120360.0,0.1186359]
[1759442964198,1.194659,120370.0,120360.0,0.1186359]
[1759442964498,1.194659,120370.0,120350.0,0.1184405]
[1759442964499,0.0830259,120360.0,120350.0,0.1184405]
[1759442964690,0.33459173,120360.0,120350.0,0.1184405]
[1759442966201,0.33459173,120360.0,120350.0,0.0962005]
[1759442966398,0.33459173,120360.0,120350.0,0.1193505]
[1759442970206,0.69539173,120360.0,120350.0,0.1193505]
[1759442973400,0.0830328,120350.0,120340.0,0.11994303]
[1759442973603,1.44615863,120350.0,120340.0,0.11994303]
[1759442974006,1.1945928,120350.0,120340.0,0.11994303]
[1759442975903,0.0830328,120350.0,120340.0,0.11994303]
[1759442976106,0.75076,120350.0,120340.0,0.11994303]
[1759442976306,0.69539773,120360.0,120350.0,0.1201428]
[1759442976705,1.44615773,120360.0,120350.0,0.1201428]
[1759442977105,0.69539773,120360.0,120350.0,0.1201428]
[1759442977305,1.44615773,120360.0,120350.0,0.1201428]
[1759442978903,1.44615773,120360.0,120350.0,0.0969928]
[1759442979312,1.44615773,120360.0,120350.0,0.1201428]
[1759442979510,0.69539773,120360.0,120350.0,0.1201428]
[1759442979713,1.44615773,120360.0,120350.0,0.1201428]
[1759442980706,0.69539773,120360.0,120350.0,0.1201428]
[1759442980913,1.44615773,120360.0,120350.0,0.1201428]
[1759442981317,0.69539773,120360.0,120350.0,0.1201428]
[1759442981518,1.44615773,120360.0,120350.0,0.1201428]
[1759442982715,1.46805629,120360.0,120350.0,0.1201428]
[1759442983815,0.71729629,120360.0,120350.0,0.1201428]
[1759442984217,1.46801629,120360.0,120350.0,0.1201428]
[1759442984710,1.4680173,120360.0,120350.0,0.1201428]
[1759442987820,1.21645147,120360.0,120350.0,0.1201428]
[1759442988016,1.4680173,120360.0,120350.0,0.1201428]
[1759442990217,1.44611773,120360.0,120350.0,0.0969928]
[1759442991025,1.44611773,120360.0,120350.0,0.1201428]
[1759442991426,1.46803222,120360.0,120350.0,0.1201428]
[1759442995125,1.44611773,120360.0,120350.0,0.1201428]
[1759442997922,1.69768356,120360.0,120340.0,0.09679623]
[1759442998128,0.69539863,120350.0,120340.0,0.01375713]
[1759442998324,0.69539863,120350.0,120340.0,0.08310683]
[1759442998926,1.44611863,120350.0,120340.0,0.09592683]
[1759442999127,1.44611863,120350.0,120340.0,0.11821683]
[1759443000134,1.4542743,120350.0,120340.0,0.11821683]
[1759443001233,1.44611863,120350.0,120340.0,0.11821683]
[1759443004034,1.45453878,120350.0,120340.0,0.11821683]
[1759443005234,0.70381878,120350.0,120340.0,0.11821683]
[1759443005433,1.45457878,120350.0,120340.0,0.11821683]
[1759443008931,1.45457878,120350.0,120340.0,0.09592683]
[1759443009431,1.45457878,120350.0,120340.0,0.08310683]
[1759443009627,1.20301295,120350.0,120340.0,0.08310683]
[1759443009832,0.70381878,120350.0,120340.0,0.08310683]
[1759443010032,1.45457878,120350.0,120340.0,0.08310683]
[1759443010232,1.45457878,120350.0,120340.0,6.713e-05]
[1759443010736,0.70381878,120350.0,120340.0,6.713e-05]
[1759443010934,1.45457878,120350.0,120340.0,6.713e-05]
[1759443011238,0.70381878,120350.0,120340.0,6.713e-05]
[1759443011435,1.45457878,120350.0,120340.0,6.713e-05]
[1759443012140,0.70381878,120350.0,120340.0,6.713e-05]
[1759443012436,1.45457878,120350.0,120340.0,6.713e-05]
[1759443014036,1.47679508,120350.0,120340.0,6.713e-05]
[1759443014436,1.45457878,120350.0,120340.0,6.713e-05]
[1759443015829,0.70381878,120350.0,120340.0,6.713e-05]
[1759443016033,1.45457878,120350.0,120340.0,6.713e-05]
[1759443018440,1.47678897,120350.0,120340.0,0.01288713]
[1759443019342,0.47446314,120350.0,120340.0,0.11821683]
[1759443019543,1.47678897,120350.0,120340.0,0.11821683]
[1759443020546,0.72602897,120350.0,120340.0,0.11821683]
[1759443020744,1.47678897,120350.0,120340.0,0.11821683]
[1759443022345,0.72602897,120350.0,120340.0,0.11821683]
[1759443022545,1.47678897,120350.0,120340.0,0.11821683]
[1759443022745,1.47678897,120350.0,120340.0,0.09592683]
[1759443023646,1.47678897,120350.0,120340.0,0.08310683]
[1759443023844,1.22522314,120350.0,120340.0,6.713e-05]
[1759443024049,1.47678897,120350.0,120340.0,0.08310683]
[1759443025446,1.83758897,120350.0,120340.0,0.08310683]
[1759443026246,2.08942358,120350.0,120340.0,0.08310683]
[1759443028447,2.08942358,120350.0,120340.0,6.713e-05]
[1759443035252,1.33866358,120350.0,120340.0,0.08310683]
[1759443035452,2.08938358,120350.0,120340.0,0.09643683]
[1759443035854,1.33866358,120350.0,120340.0,0.11862683]
[1759443036054,2.08938358,120350.0,120340.0,0.11862683]
[1759443036355,1.33866358,120350.0,120340.0,0.11862683]
[1759443036558,1.83768336,120350.0,120340.0,0.11862683]
[1759443036855,1.83769672,120350.0,120340.0,0.11862683]
[1759443037052,2.08939694,120350.0,120340.0,0.11862683]
[1759443040359,1.33867694,120350.0,120340.0,0.11862683]
[1759443040559,2.08939694,120350.0,120340.0,0.11862683]
[1759443042360,1.36779694,120350.0,120340.0,0.11862683]
[1759443042555,2.08939694,120350.0,120340.0,0.11862683]
[1759443042756,2.08939694,120350.0,120340.0,0.09643683]
[1759443046362,1.36779694,120350.0,120340.0,0.09643683]
[1759443046664,2.08939694,120350.0,120340.0,0.09643683]
[1759443046856,2.00636414,120350.0,120340.0,0.01339713]
[1759443047057,2.08935694,120350.0,120340.0,0.11862683]
[1759443048662,2.08935694,120350.0,120340.0,0.09643683]
[1759443050867,1.33867694,120350.0,120340.0,0.09643683]
[1759443051069,2.08935694,120350.0,120340.0,0.09643683]
[1759443053669,1.33867694,120350.0,120340.0,0.11862683]
[1759443053969,2.08935694,120350.0,120340.0,0.11862683]
[1759443065376,2.08935694,120350.0,120340.0,0.01339713]
[1759443067077,1.5859565,120350.0,120340.0,0.01339713]
[1759443067281,2.08935694,120350.0,120340.0,0.01339713]
[1759443068478,2.08935694,120350.0,120340.0,0.01839713]
[1759443073484,1.36775694,120350.0,120340.0,0.01839713]
[1759443073782,2.08935694,120350.0,120340.0,0.01839713]
[1759443073980,2.08935694,120350.0,120340.0,0.00506713]
[1759443075272,2.34105716,120350.0,120340.0,0.00506713]
[1759443075475,0.0830466,120330.0,120320.0,0.0965396]
[1759443075784,1.687836,120330.0,120320.0,0.0965396]
[1759443076584,1.68790313,120330.0,120320.0,0.0965396]
[1759443076987,1.68790313,120330.0,120320.0,0.1192596]
[1759443078286,1.68790313,120330.0,120320.0,0.0965396]
[1759443078687,1.68790313,120330.0,120320.0,0.1192596]
[1759443079192,1.68790313,120330.0,120320.0,0.0965396]
[1759443079890,1.68790313,120330.0,120320.0,0.01349]
[1759443083383,1.68790313,120330.0,120320.0,0.0965435]
[1759443085089,1.68790313,120330.0,120310.0,0.1178965]
[1759443085290,0.86420044,120320.0,120310.0,0.19264819]
[1759443085593,0.85422894,120320.0,120310.0,0.1178965]
[1759443086496,1.60482894,120320.0,120310.0,0.1178965]
[1759443088299,1.35323802,120320.0,120310.0,0.1178965]
[1759443088505,1.36320952,120320.0,120310.0,0.1178965]
[1759443093500,1.44626302,120320.0,120310.0,0.1178965]
[1759443093698,1.44626302,120320.0,120310.0,0.0958765]
[1759443094403,1.44626302,120320.0,120310.0,0.1174865]
[1759443095994,0.4438535,120320.0,120310.0,0.1174865]
[1759443096199,1.44626302,120320.0,120310.0,0.1174865]
[1759443096498,0.25187665,120330.0,120320.0,0.1173635]
[1759443096703,1.08552325,120330.0,120320.0,0.1173635]
[1759443096901,1.44632325,120330.0,120320.0,0.1173635]
[1759443097102,0.44391373,120330.0,120320.0,0.1173635]
[1759443097405,1.44632325,120330.0,120320.0,0.1173635]
[1759443098603,0.69572325,120330.0,120320.0,0.1173635]
[1759443098803,1.44632325,120330.0,120320.0,0.1173635]
[1759443100301,1.69813277,120330.0,120320.0,0.1173635]
[1759443100505,1.69813277,120330.0,120320.0,0.03431]
[1759443100806,1.69813277,120330.0,120310.0,0.1174855]
[1759443101000,0.61260952,120320.0,120310.0,0.1174855]
[1759443105208,0.69566302,120320.0,120310.0,0.1174855]
[1759443105409,0.69566302,120320.0,120310.0,0.0830555]
[1759443106910,1.44626302,120320.0,120310.0,0.0830555]
[1759443107105,1.44626302,120320.0,120310.0,0.0957555]
[1759443107308,1.44626302,120320.0,120310.0,0.1173655]
[1759443108309,0.69566302,120320.0,120310.0,0.1173655]
[1759443108509,1.44626302,120320.0,120310.0,0.1173655]
[1759443109715,0.69566302,120320.0,120310.0,0.1173655]
[1759443109910,1.44626302,120320.0,120310.0,0.1173655]
[1759443110110,0.69566302,120320.0,120310.0,0.1173655]
[1759443110316,1.44622302,120320.0,120310.0,0.1173655]
[1759443111008,0.69566302,120320.0,120310.0,0.1173655]
[1759443111312,1.44622302,120320.0,120310.0,0.1173655]
[1759443122018,0.69566302,120320.0,120310.0,0.1173655]
[1759443122219,1.44622302,120320.0,120310.0,0.1173655]
[1759443123116,0.69566302,120320.0,120310.0,0.1173655]
[1759443123317,1.44622302,120320.0,120310.0,0.1173655]
[1759443123716,0.69566302,120320.0,120310.0,0.1173655]
[1759443123917,1.44622302,120320.0,120310.0,0.1173655]
[1759443124217,0.69566302,120320.0,120310.0,0.1173655]
[1759443124410,1.44618302,120320.0,120310.0,0.1173655]
[1759443125618,1.1943735,120320.0,120310.0,0.1173655]
[1759443125917,1.44618302,120320.0,120310.0,0.1173655]
[1759443133914,1.08538302,120320.0,120310.0,0.1173655]
[1759443134115,1.46843559,120320.0,120310.0,0.1173655]
[1759443134414,1.44618302,120320.0,120310.0,0.1173655]
[1759443135219,1.46837307,120320.0,120310.0,0.1173655]
[1759443137427,1.44618302,120320.0,120310.0,0.1173655]
[1759443143238,0.69566302,120320.0,120310.0,0.1173655]
[1759443143439,1.44614302,120320.0,120310.0,0.1173655]
[1759443144729,0.69566302,120320.0,120310.0,0.1173655]
[1759443144930,1.44614302,120320.0,120310.0,0.1173655]
[1759443150444,1.69790324,120320.0,120310.0,0.1173655]
[1759443156252,1.69790324,120320.0,120310.0,0.0957555]
[1759443156656,1.69790324,120320.0,120310.0,0.1172355]
[1759443157655,1.69790324,120320.0,120310.0,0.17706931]
[1759443159655,1.69790324,120320.0,120310.0,0.1172355]
[1759443162655,1.69790324,120320.0,120310.0,0.03418]
[1759443162852,0.0830673,120300.0,120290.0,0.63633365]
[1759443163159,1.31351999,120300.0,120290.0,0.63633365]
[1759443163560,1.31351999,120300.0,120290.0,0.27553365]
[1759443163755,1.31351999,120300.0,120290.0,0.19313529]
[1759443164559,1.31351999,120300.0,120290.0,0.1183836]
[1759443165058,1.67431999,120300.0,120290.0,0.03531]
[1759443165256,1.67431999,120300.0,120290.0,0.11006169]
[1759443165858,1.68249883,120300.0,120290.0,0.11006169]
[1759443166053,1.68249883,120300.0,120290.0,0.19313589]
[1759443166263,1.68249883,120300.0,120290.0,0.43531]
[1759443166760,1.68256596,120300.0,120290.0,0.5183842]
[1759443167355,1.68256596,120300.0,120290.0,0.43531]
[1759443167863,0.93220596,120300.0,120290.0,0.5183842]
[1759443168064,1.68260596,120300.0,120290.0,0.4969042]
[1759443168366,1.68260596,120300.0,120290.0,0.5183842]
[1759443169663,0.93220596,120300.0,120290.0,0.5183842]
[1759443169863,1.68260596,120300.0,120290.0,0.5183842]
[1759443171761,0.0830742,120290.0,120280.0,0.17052779]
[1759443172064,1.69784394,120290.0,120280.0,0.19200779]
[1759443173064,1.68786992,120290.0,120280.0,0.19200779]
[1759443173466,1.43608505,120290.0,120280.0,0.19200779]
[1759443173968,1.43608505,120290.0,120280.0,0.1172561]
[1759443174665,0.68568505,120290.0,120280.0,0.1172561]
[1759443174865,1.43608505,120290.0,120280.0,0.1172561]
[1759443175766,0.68568505,120290.0,120280.0,0.1172561]
[1759443175968,1.43608505,120290.0,120280.0,0.1172561]
[1759443178366,0.0830742,120290.0,120280.0,1.02082584]
[1759443178568,0.08313443,120300.0,120290.0,0.1182642]
[1759443178769,6.713e-05,120300.0,120290.0,0.62183394]
[1759443179069,6.713e-05,120300.0,120290.0,0.77004907]
[1759443179270,0.61258487,120320.0,120310.0,0.1182504]
[1759443179565,1.44608047,120320.0,120310.0,0.37003527]
[1759443179871,1.08528047,120320.0,120310.0,0.1182504]
[1759443180264,1.33706534,120320.0,120310.0,0.1182504]
[1759443180769,1.08528047,120320.0,120310.0,0.1182504]
[1759443181166,0.33484047,120320.0,120310.0,0.1182504]
[1759443181671,1.33706534,120320.0,120310.0,0.1182504]
[1759443182368,0.58662534,120320.0,120310.0,0.1182504]
[1759443182566,0.69563467,120330.0,120320.0,0.1182435]
[1759443182765,0.67825267,120340.0,120330.0,0.0830466]
[1759443182766,0.69562917,120340.0,120330.0,0.0830466]
[1759443182970,0.71777992,120340.0,120330.0,0.1182366]
[1759443183168,0.50646098,120360.0,120350.0,0.01299]
[1759443183375,0.72824896,120360.0,120350.0,0.1182228]
[1759443183572,1.47880896,120360.0,120350.0,0.1182228]
[1759443183772,1.73059383,120360.0,120350.0,0.1182228]
[1759443184071,0.72824896,120360.0,120350.0,0.37000767]
[1759443184273,1.47896896,120360.0,120350.0,0.37000767]
[1759443184473,1.73075383,120360.0,120350.0,0.1182228]
[1759443188472,1.22718409,120360.0,120350.0,0.1182228]
[1759443188777,1.73075383,120360.0,120350.0,0.1182228]
[1759443189082,0.02214471,120360.0,120350.0,0.37000767]
[1759443189280,0.69560827,120370.0,120360.0,0.1182159]
[1759443189577,1.46805003,120370.0,120360.0,0.1182159]
[1759443191475,0.02192176,120370.0,120360.0,1.13080077]
[1759443191671,0.27370663,120370.0,120360.0,1.13080077]
[1759443191869,0.27370663,120370.0,120360.0,0.5182159]
[1759443192473,0.02192176,120370.0,120360.0,0.5182159]
[1759443192674,0.27370663,120370.0,120360.0,0.5182159]
[1759443193675,0.02192176,120370.0,120360.0,0.5182159]
[1759443193974,0.25178487,120370.0,120360.0,0.5182159]
[1759443202386,0.61258487,120370.0,120360.0,0.5182159]
[1759443204692,0.61258487,120370.0,120360.0,1.2684159]
[1759443205293,0.69560387,120370.0,120360.0,1.2684159]
[1759443206393,0.69560387,120370.0,120360.0,0.5182159]
[1759443206593,0.69560387,120370.0,120360.0,1.2684159]
[1759443206792,0.443819,120370.0,120360.0,1.2684159]
[1759443207094,0.69560387,120370.0,120360.0,0.5182159]
[1759443207291,0.69560387,120370.0,120360.0,1.2683759]
[1759443207593,0.69560387,120370.0,120360.0,0.5182159]
[1759443207893,0.69560387,120370.0,120360.0,1.2683359]
[1759443208494,0.69560387,120370.0,120360.0,0.5182159]
[1759443209197,0.69560387,120370.0,120360.0,1.2682959]
[1759443209397,0.69560387,120370.0,120360.0,0.5182159]
[1759443209697,0.69560387,120370.0,120360.0,1.2682959]
[1759443210797,0.69560387,120370.0,120360.0,0.5182159]
[1759443210989,0.69560387,120370.0,120360.0,1.2682959]
[1759443211399,0.69560387,120370.0,120360.0,1.2682559]
[1759443211997,0.33480387,120370.0,120360.0,1.2682559]
[1759443212193,0.69538946,120370.0,120360.0,1.2682559]
[1759443215893,0.443819,120370.0,120360.0,1.2682559]
[1759443216096,0.69538946,120370.0,120360.0,1.2682559]
[1759443217100,0.69538946,120370.0,120360.0,0.5182159]
[1759443217496,0.69538946,120370.0,120360.0,1.2682159]
[1759443218304,0.443819,120370.0,120360.0,1.2682159]
[1759443218497,0.69538946,120370.0,120360.0,1.2682159]
[1759443221297,0.71795796,120370.0,120360.0,1.2682159]
[1759443222396,0.71795796,120370.0,120360.0,0.8682159]
[1759443225598,0.71795796,120370.0,120360.0,0.1182159]
[1759443225901,1.11795796,120370.0,120360.0,0.03519]
[1759443226107,1.11795796,120370.0,120360.0,0.1182159]
[1759443226409,1.86795796,120370.0,120360.0,0.1182159]
[1759443226598,1.2163875,120370.0,120360.0,0.1182159]
[1759443226800,1.46795796,120370.0,120360.0,0.1182159]
[1759443228704,0.71795796,120370.0,120360.0,0.1182159]
[1759443228904,1.46799796,120370.0,120360.0,0.1182159]
[1759443230506,0.71795796,120370.0,120360.0,0.1182159]
[1759443230706,1.46799796,120370.0,120360.0,0.1182159]
[1759443230906,0.71795796,120370.0,120360.0,0.1182159]
[1759443231205,1.46803796,120370.0,120360.0,0.1182159]
[1759443232205,0.71795796,120370.0,120360.0,0.1182159]
[1759443234510,0.69538946,120370.0,120360.0,0.1182159]
[1759443236308,0.443819,120370.0,120360.0,0.1182159]
[1759443236511,0.69538946,120370.0,120360.0,0.1182159]
[1759443236711,0.083019,120370.0,120360.0,0.1182159]
[1759443237606,0.083019,120370.0,120360.0,0.36978636]
[1759443238112,0.083019,120370.0,120360.0,0.1182159]
[1759443238711,0.083019,120370.0,120360.0,0.36978636]
[1759443239611,0.083019,120370.0,120360.0,0.1182159]
[1759443240409,0.083019,120370.0,120360.0,0.8682159]
[1759443240713,0.083019,120370.0,120360.0,0.1182159]
[1759443241014,0.33458946,120370.0,120360.0,0.8682159]
[1759443241311,0.33458946,120370.0,120360.0,0.1182159]
[1759443241510,0.69538946,120370.0,120360.0,0.8682159]
[1759443242006,0.69538946,120370.0,120360.0,0.1182159]
[1759443248017,0.443819,120370.0,120360.0,0.1182159]
[1759443248219,0.69538946,120370.0,120360.0,0.1182159]
[1759443250722,0.443819,120370.0,120360.0,0.1182159]
[1759443250918,0.61237046,120380.0,120360.0,0.36978636]
[1759443251121,1.38485789,120380.0,120370.0,0.03589]
[1759443253621,1.36237046,120380.0,120370.0,0.03589]
[1759443254127,1.36237046,120380.0,120370.0,0.04401143]
[1759443255522,0.3608,120380.0,120370.0,0.12703043]
[1759443255726,0.4438093,120390.0,120380.0,0.1189021]
[1759443255926,1.46789357,120390.0,120380.0,0.1189021]
[1759443256317,0.71777357,120390.0,120380.0,0.1189021]
[1759443256516,0.46620311,120390.0,120380.0,0.37047256]
[1759443256923,0.46620311,120390.0,120380.0,0.1189021]
[1759443257522,0.69537156,120400.0,120390.0,0.1188952]
[1759443257718,1.46782915,120400.0,120390.0,0.1188952]
[1759443258120,0.46609869,120400.0,120390.0,0.1188952]
[1759443258328,0.02229759,120400.0,120390.0,0.1188952]
[1759443258524,0.02229759,120400.0,120390.0,0.37046566]
[1759443258734,0.3608,120410.0,120400.0,0.1188883]
[1759443258926,0.38309384,120410.0,120400.0,0.1188883]
[1759443260935,0.61237046,120410.0,120400.0,0.1188883]
[1759443261626,0.3608,120410.0,120400.0,0.1188883]
[1759443261834,0.61237046,120410.0,120400.0,0.1188883]
[1759443263932,0.3608,120410.0,120400.0,0.1188883]
[1759443264430,0.3608,120410.0,120400.0,0.37045876]
[1759443266934,0.3608,120410.0,120400.0,0.1188883]
[1759443267133,0.3608,120410.0,120400.0,0.37045876]
[1759443267732,0.3608,120420.0,120410.0,0.1174414]
[1759443267936,1.44539186,120430.0,120420.0,0.03445]
[1759443272933,1.44539186,120430.0,120420.0,0.1174345]
[1759443273333,0.4437814,120430.0,120420.0,0.1174345]
[1759443273537,1.44535186,120430.0,120420.0,0.1174345]
[1759443273736,1.1937814,120430.0,120420.0,0.1174345]
[1759443274036,1.44535186,120430.0,120420.0,0.1174345]
[1759443274232,1.4450984,120430.0,120420.0,0.1174345]
[1759443274844,0.3608,120430.0,120420.0,1.0200685]
[1759443275138,0.612117,120440.0,120430.0,0.03445]
[1759443275730,0.3608,120440.0,120430.0,0.1174276]
[1759443275937,0.3608,120440.0,120430.0,0.3687446]
[1759443277038,0.3608,120440.0,120430.0,0.7687446]
[1759443277538,0.3608,120440.0,120430.0,0.5174276]
[1759443277839,0.3608,120440.0,120430.0,0.7687446]
[1759443278043,0.612117,120450.0,120440.0,0.1174207]
[1759443278232,0.63409699,120450.0,120440.0,0.3687377]
[1759443278437,0.63409702,120450.0,120440.0,0.3687377]
[1759443278732,0.3608,120460.0,120450.0,0.1174138]
[1759443278937,0.38278091,120460.0,120450.0,0.3687308]
[1759443279136,0.63409791,120460.0,120450.0,0.3687308]
[1759443279336,0.38278091,120460.0,120450.0,0.7687308]
[1759443279541,0.3608,120460.0,120450.0,0.7687308]
[1759443280238,0.3608,120460.0,120450.0,1.5190908]
[1759443280436,0.612117,120470.0,120460.0,0.117407]
[1759443280739,0.63380468,120470.0,120460.0,0.117407]
[1759443283644,0.63380468,120470.0,120460.0,0.18401811]
[1759443286239,0.65617016,120470.0,120460.0,0.18401811]
[1759443286736,0.40485316,120470.0,120460.0,0.18401811]
[1759443286943,0.65617016,120470.0,120460.0,0.18401811]
[1759443294649,0.40485316,120470.0,120460.0,0.18401811]
[1759443294849,0.65617016,120470.0,120460.0,0.18401811]
[1759443295749,0.65617016,120470.0,120460.0,0.19249378]
[1759443297344,0.68596536,120470.0,120460.0,0.19249378]
[1759443297544,0.40485316,120470.0,120460.0,0.19249378]
[1759443297748,0.68596536,120470.0,120460.0,0.19249378]
[1759443297955,0.43464836,120470.0,120460.0,0.19249378]
[1759443298156,0.43464836,120470.0,120460.0,0.44381078]
[1759443298157,0.68596536,120470.0,120460.0,0.44381078]
[1759443298555,0.43464836,120470.0,120460.0,0.44381078]
[1759443298755,0.68596536,120470.0,120460.0,0.44381078]
[1759443300558,0.68596536,120470.0,120460.0,0.19249378]